fUST/lending_fUST_20250218
["ID","MTS","AMOUNT","RATE_DAILY","PERIOD"]
[353466867,1739862632459,-500.0,0.00013854,2]
[353466868,1739862632468,-500.0,0.00013854,2]
[353466870,1739862632478,-500.0,0.00013854,2]
[353466872,1739862632487,-500.0,0.00013854,2]
[353466874,1739862632497,-500.0,0.00013854,2]
[353466876,1739862632506,-242.54,0.00013854,2]
[353466878,1739862632516,-500.0,0.00013854,2]
[353466880,1739862632525,-297.53,0.00013854,2]
[353466882,1739862632535,-228.54,0.00013854,2]
[353466884,1739862632544,-500.0,0.00013855,2]
[353466886,1739862632554,-533.6,0.00013855,2]
[353466888,1739862632564,-949.82,0.00013855,2]
[353466890,1739862632573,-500.0,0.00013855,2]
[353466892,1739862632583,-457.15113846,0.00013855,2]
[353466925,1739862638067,-500.0,0.00013854,2]
[353466926,1739862638077,-42.84886154,0.00013855,2]
[353466927,1739862638087,-500.0,0.00013936,2]
[353466928,1739862638096,-486.25207872,0.00013936,2]
[353466929,1739862638106,-500.0,0.00013936,2]
[353466930,1739862638115,-500.0,0.00013936,2]
[353466931,1739862638124,-500.0,0.00013936,2]
[353466932,1739862638134,-500.0,0.00013936,2]
[353466933,1739862638143,-500.0,0.00013936,2]
[353466934,1739862638153,-307.96926827,0.00013936,2]
[353466935,1739862638263,-192.03073173,0.00013936,2]
[353466936,1739862638274,-191.256,0.00013937,2]
[353466937,1739862638283,-419.17,0.00013937,2]
[353466938,1739862638292,-565.18,0.00013937,2]
[353466939,1739862638302,-561.16,0.00013937,2]
[353466940,1739862638311,-500.0,0.00013937,2]
[353466941,1739862638321,-500.0,0.00013937,2]
[353466942,1739862638330,-161.52326827,0.00013937,2]
[353466943,1739862638730,-440.38673173,0.00013937,2]
[353466944,1739862638743,-949.82,0.00013937,2]
[353466945,1739862638752,-500.0,0.00013937,2]
[353466946,1739862638761,-297.00004202,0.00013937,2]
[353467045,1739863630136,-400.0,0.00010578,2]
[353467046,1739863630161,-310.64178547,0.00010685,2]
[353467047,1739863639132,-89.35821453,0.00010685,2]
[353467048,1739863639155,-191.84495613,0.00013068,2]
[353467049,1739863654149,-708.15504387,0.00013068,2]
[353467050,1739863654175,-500.0,0.00013853,2]
[353467051,1739863654202,-48.40712077,0.00013853,2]
[353467052,1739863686400,2436.6456818,0.00019,120]
[353467101,1739863832430,-1000.0,0.00013068,2]
[353467102,1739863832440,-300.0,0.00013699,2]
[353467103,1739863832449,-500.0,0.00013699,2]
[353467104,1739863832459,-457.93204574,0.00013699,2]
[353467105,1739863832468,-558.90352975,0.00013699,2]
[353467106,1739863832478,-1.44889416,0.00013699,2]
[353467107,1739863832490,-288.48719008,0.00013699,2]
[353467108,1739863832499,-15133.99150067,0.000137,2]
[353467109,1739863832511,-505.29837822,0.000137,2]
[353467110,1739863832522,-252.78685768,0.000137,2]
[353467111,1739863832551,-130256.92326343,0.000137,2]
[353467112,1739863832561,-35184.04241399,0.000138,5]
[353467113,1739863832571,-2422.69847812,0.000138,5]
[353467114,1739863832581,-492.811504,0.00013825,2]
[353467115,1739863832590,-500.0,0.00013934,2]
[353467116,1739863832599,-500.0,0.00013934,2]
[353467117,1739863832609,-500.0,0.00013934,2]
[353467118,1739863832619,-632.07,0.00013934,2]
[353467120,1739863832629,-500.0,0.00013934,2]
[353467122,1739863832638,-500.0,0.00013934,2]
[353467124,1739863832649,-500.0,0.00013934,2]
[353467126,1739863832659,-500.0,0.00013934,2]
[353467128,1739863832669,-643.56,0.00013934,2]
[353467130,1739863832679,-500.0,0.00013934,2]
[353467132,1739863832689,-500.0,0.00013934,2]
[353467134,1739863832698,-500.0,0.00013934,2]
[353467136,1739863832707,-500.0,0.00013934,2]
[353467138,1739863832717,-574.45,0.00013934,2]
[353467140,1739863832726,-423.52936633,0.00013934,2]
[353467142,1739863832735,-500.0,0.00013934,2]
[353467144,1739863832745,-500.0,0.00013934,2]
[353467146,1739863832755,-500.0,0.00013934,2]
[353467148,1739863832764,-500.0,0.00013934,2]
[353467150,1739863832774,-500.0,0.00013934,2]
[353467152,1739863832783,-500.0,0.00013934,2]
[353467154,1739863832792,-500.0,0.00013934,2]
[353467156,1739863832801,-500.0,0.00013934,2]
[353467158,1739863832810,-500.0,0.00013934,2]
[353467159,1739863832820,-500.0,0.00013934,2]
[353467160,1739863832830,-500.0,0.00013934,2]
[353467161,1739863832839,-500.0,0.00013934,2]
[353467162,1739863832849,-500.0,0.00013934,2]
[353467163,1739863832859,-500.0,0.00013934,2]
[353467164,1739863832869,-505.77102155,0.00013935,2]
[353467165,1739863832879,-500.0,0.00013935,2]
[353467166,1739863832889,-213.501,0.00013935,2]
[353467167,1739863832899,-500.0,0.00013935,2]
[353467168,1739863832909,-500.0,0.00013935,2]
[353467169,1739863832920,-500.0,0.00013935,2]
[353467170,1739863832930,-500.0,0.00013935,2]
[353467171,1739863832940,-500.0,0.00013935,2]
[353467172,1739863832950,-567.33944001,0.00013935,2]
[353467173,1739863832960,-537.77,0.00013935,2]
[353467174,1739863832971,-178.15,0.00013935,2]
[353467175,1739863832981,-541.63,0.00013935,2]
[353467176,1739863832991,-500.0,0.00013935,2]
[353467177,1739863833001,-647.5328818,0.00013935,2]
[353467178,1739863833011,-500.0,0.00013935,2]
[353467179,1739863833021,-600.79,0.00013935,2]
[353467180,1739863833031,-192.33729865,0.00013935,2]
[353467181,1739863833043,-500.0,0.00013935,2]
[353467182,1739863833053,-500.0,0.00013935,2]
[353467183,1739863833063,-500.0,0.00013935,2]
[353467184,1739863833072,-630.86,0.00013935,2]
[353467185,1739863833085,-648.17,0.00013935,2]
[353467186,1739863833096,-500.0,0.00013935,2]
[353467187,1739863833107,-528.29,0.00013935,2]
[353467188,1739863833116,-256.02895938,0.00013935,2]
[353467189,1739863833129,-500.0,0.00013935,2]
[353467190,1739863833139,-500.0,0.00013935,2]
[353467191,1739863833152,-500.0,0.00013935,2]
[353467192,1739863833162,-500.0,0.00013935,2]
[353467193,1739863833175,-500.0,0.00013935,2]
[353467194,1739863833186,-615.97,0.00013935,2]
[353467195,1739863833195,-554.14,0.00013935,2]
[353467196,1739863833205,-500.0,0.00013935,2]
[353467197,1739863833215,-547.17,0.00013935,2]
[353467198,1739863833225,-151.0,0.00013935,2]
[353467199,1739863833235,-500.0,0.00013935,2]
[353467200,1739863833244,-500.0,0.00013935,2]
[353467201,1739863833254,-500.0,0.00013935,2]
[353467202,1739863833263,-500.0,0.00013935,2]
[353467203,1739863833274,-500.0,0.00013935,2]
[353467204,1739863833284,-500.0,0.00013935,2]
[353467205,1739863833294,-189.80057015,0.00013935,2]
[353467206,1739863833304,-500.0,0.00013935,2]
[353467207,1739863833313,-548.45,0.00013935,2]
[353467208,1739863833324,-547.14,0.00013935,2]
[353467209,1739863833333,-500.0,0.00013935,2]
[353467210,1739863833343,-614.38,0.00013935,2]
[353467211,1739863833352,-500.0,0.00013935,2]
[353467212,1739863833362,-500.0,0.00013935,2]
[353467213,1739863833372,-500.0,0.00013935,2]
[353467214,1739863833381,-500.0,0.00013935,2]
[353467215,1739863833391,-929.13,0.00013935,2]
[353467216,1739863833401,-151.0,0.00013935,2]
[353467217,1739863833411,-151.0,0.00013935,2]
[353467218,1739863833421,-500.0,0.00013935,2]
[353467219,1739863833430,-288.09,0.00013935,2]
[353467220,1739863833442,-500.0,0.00013935,2]
[353467221,1739863833452,-500.0,0.00013935,2]
[353467222,1739863833463,-500.0,0.00013935,2]
[353467223,1739863833473,-2178.72,0.00013935,2]
[353467224,1739863833484,-587.09,0.00013935,2]
[353467225,1739863833493,-500.0,0.00013935,2]
[353467226,1739863833503,-500.0,0.00013935,2]
[353467227,1739863833513,-500.0,0.00013935,2]
[353467228,1739863833522,-500.0,0.00013935,2]
[353467229,1739863833532,-151.0,0.00013935,2]
[353467230,1739863833541,-151.0,0.00013935,2]
[353467231,1739863833550,-151.0,0.00013935,2]
[353467232,1739863833560,-219.697358,0.00013935,2]
[353467233,1739863833570,-500.0,0.00013935,2]
[353467234,1739863833580,-500.0,0.00013935,2]
[353467235,1739863833589,-500.0,0.00013935,2]
[353467236,1739863833599,-500.0,0.00013935,2]
[353467237,1739863833608,-151.0,0.00013935,2]
[353467238,1739863833618,-151.0,0.00013935,2]
[353467239,1739863833627,-151.0,0.00013935,2]
[353467240,1739863833637,-151.567299,0.00013935,2]
[353467241,1739863833649,-151.0,0.00013935,2]
[353467242,1739863833660,-151.0,0.00013935,2]
[353467243,1739863833670,-151.0,0.00013935,2]
[353467244,1739863833680,-151.0,0.00013935,2]
[353467245,1739863833691,-151.0,0.00013935,2]
[353467246,1739863833700,-151.0,0.00013935,2]
[353467247,1739863833710,-151.0,0.00013935,2]
[353467248,1739863833720,-958.98,0.00013935,2]
[353467249,1739863833730,-151.0,0.00013935,2]
[353467250,1739863833740,-151.0,0.00013935,2]
[353467251,1739863833749,-500.0,0.00013935,2]
[353467252,1739863833759,-500.0,0.00013935,2]
[353467253,1739863833769,-155.069885,0.00013936,2]
[353467254,1739863833779,-151.0,0.00013936,2]
[353467255,1739863833789,-151.0,0.00013936,2]
[353467256,1739863833798,-216.0000907,0.00014,2]
[353467257,1739863833808,-355.1269712,0.00014,2]
[353467258,1739863833818,-153.0,0.00014,2]
[353467259,1739863833828,-154.7234452,0.00014,2]
[353467260,1739863833838,-216.0000907,0.00014,2]
[353467261,1739863833848,-153.0,0.00014,2]
[353467262,1739863833859,-355.1269712,0.00014,2]
[353467263,1739863833870,-153.0,0.00014,2]
[353467264,1739863833880,-355.1269712,0.00014,2]
[353467265,1739863833890,-154.7234452,0.00014,2]
[353467266,1739863833900,-216.0000907,0.00014,2]
[353467267,1739863833910,-153.0,0.00014,2]
[353467268,1739863833921,-153.0,0.00014,2]
[353467269,1739863833931,-216.0000907,0.00014,2]
[353467270,1739863833941,-153.0,0.00014,2]
[353467271,1739863833951,-355.1269712,0.00014,2]
[353467272,1739863833961,-153.0,0.00014,2]
[353467273,1739863833971,-154.7234452,0.00014,2]
[353467274,1739863833981,-500.0,0.00014016,2]
[353467275,1739863833992,-500.0,0.00014016,2]
[353467276,1739863834002,-500.0,0.00014016,2]
[353467277,1739863834012,-632.07,0.00014016,2]
[353467278,1739863834022,-464.67,0.00014016,2]
[353467279,1739863834032,-387.82,0.00014016,2]
[353467280,1739863834041,-151.0,0.00014016,2]
[353467281,1739863834051,-500.0,0.00014016,2]
[353467282,1739863834060,-500.0,0.00014016,2]
[353467283,1739863834070,-500.0,0.00014016,2]
[353467284,1739863834080,-500.0,0.00014016,2]
[353467285,1739863834090,-500.0,0.00014016,2]
[353467286,1739863834101,-317.0,0.00014016,2]
[353467287,1739863834111,-500.0,0.00014016,2]
[353467288,1739863834121,-151.0,0.00014016,2]
[353467289,1739863834131,-579.1,0.00014016,2]
[353467290,1739863834142,-500.0,0.00014016,2]
[353467291,1739863834151,-227.05,0.00014016,2]
[353467292,1739863834161,-151.0,0.00014016,2]
[353467293,1739863834173,-151.0,0.00014016,2]
[353467294,1739863834183,-401.27,0.00014016,2]
[353467295,1739863834193,-500.0,0.00014016,2]
[353467296,1739863834202,-525.0,0.00014016,2]
[353467297,1739863834213,-207.22,0.00014017,2]
[353467298,1739863834222,-500.0,0.00014017,2]
[353467299,1739863834232,-358.66,0.00014017,2]
[353467300,1739863834241,-381.78,0.00014017,2]
[353467301,1739863834250,-189.12,0.00014017,2]
[353467302,1739863834260,-376.18,0.00014017,2]
[353467303,1739863834360,-345.7,0.00014017,2]
[353467304,1739863834370,-579.21,0.00014017,2]
[353467305,1739863834380,-192.86,0.00014017,2]
[353467306,1739863834391,-263.78,0.00014017,2]
[353467307,1739863834402,-929.13,0.00014017,2]
[353467308,1739863834412,-151.0,0.00014017,2]
[353467309,1739863834423,-507.68,0.00014017,2]
[353467310,1739863834433,-2178.72,0.00014017,2]
[353467311,1739863834443,-500.0,0.00014017,2]
[353467312,1739863834453,-531.07,0.00014017,2]
[353467313,1739863834462,-172.42,0.00014017,2]
[353467314,1739863834472,-151.0,0.00014017,2]
[353467315,1739863834483,-464.29,0.00014017,2]
[353467316,1739863834493,-151.0,0.00014017,2]
[353467317,1739863834503,-151.0,0.00014017,2]
[353467318,1739863834513,-958.98,0.00014017,2]
[353467319,1739863834523,-151.0,0.00014017,2]
[353467320,1739863834533,-500.0,0.00014017,2]
[353467321,1739863834543,-151.924216,0.00014018,2]
[353467322,1739863834553,-151.270883,0.00014018,2]
[353467323,1739863834563,-151.0,0.00014018,2]
[353467324,1739863834574,-151.0,0.00014018,2]
[353467325,1739863834583,-151.0,0.00014018,2]
[353467326,1739863834593,-151.0,0.00014019,2]
[353467327,1739863834603,-151.0,0.00014019,2]
[353467328,1739863834613,-151.0,0.00014019,2]
[353467329,1739863834622,-151.0,0.00014019,2]
[353467330,1739863834632,-152.43942,0.00014019,2]
[353467331,1739863834643,-151.0,0.00014019,2]
[353467332,1739863834653,-500.0,0.00014098,2]
[353467333,1739863834663,-500.0,0.00014098,2]
[353467334,1739863834672,-632.07,0.00014098,2]
[353467335,1739863834682,-323.8,0.00014098,2]
[353467336,1739863834691,-500.0,0.00014098,2]
[353467337,1739863834700,-500.0,0.00014098,2]
[353467338,1739863834710,-500.0,0.00014098,2]
[353467339,1739863834719,-500.0,0.00014098,2]
[353467340,1739863834729,-500.0,0.00014098,2]
[353467341,1739863834739,-500.0,0.00014098,2]
[353467342,1739863834749,-281.51,0.00014098,2]
[353467343,1739863834759,-151.0,0.00014099,2]
[353467344,1739863834769,-288.8,0.00014099,2]
[353467345,1739863834780,-929.13,0.00014099,2]
[353467346,1739863834790,-219.038033,0.00014099,2]
[353467347,1739863834800,-2178.72,0.00014099,2]
[353467348,1739863834811,-500.0,0.00014099,2]
[353467349,1739863834821,-958.98,0.00014099,2]
[353467350,1739863834831,-500.0,0.00014099,2]
[353467351,1739863834840,-153.0,0.000141,2]
[353467352,1739863834850,-153.0,0.000141,2]
[353467353,1739863834860,-216.0000907,0.000141,2]
[353467354,1739863834870,-153.0,0.000141,2]
[353467355,1739863834880,-355.1269712,0.000141,2]
[353467356,1739863834890,-154.7234452,0.000141,2]
[353467357,1739863834903,-153.0,0.000141,2]
[353467358,1739863834913,-153.0,0.000141,2]
[353467359,1739863834923,-153.0,0.000141,2]
[353467360,1739863834933,-216.0000907,0.000141,2]
[353467361,1739863834943,-154.7234452,0.000141,2]
[353467362,1739863834952,-355.1269712,0.000141,2]
[353467363,1739863834962,-153.0,0.000141,2]
[353467364,1739863834972,-154.7234452,0.000141,2]
[353467365,1739863834981,-153.0,0.000141,2]
[353467366,1739863834992,-153.0,0.000141,2]
[353467367,1739863835001,-355.1269712,0.000141,2]
[353467368,1739863835011,-153.0,0.000141,2]
[353467369,1739863835021,-153.0,0.000141,2]
[353467370,1739863835030,-216.0000907,0.000141,2]
[353467371,1739863835039,-355.1269712,0.000141,2]
[353467372,1739863835049,-216.0000907,0.000141,2]
[353467373,1739863835059,-153.0,0.000141,2]
[353467374,1739863835070,-153.0,0.000141,2]
[353467375,1739863835079,-355.1269712,0.000141,2]
[353467376,1739863835091,-216.0000907,0.000141,2]
[353467377,1739863835103,-154.7234452,0.000141,2]
[353467378,1739863835113,-153.0,0.000141,2]
[353467379,1739863835122,-153.0,0.000141,2]
[353467380,1739863835133,-355.1269712,0.000141,2]
[353467381,1739863835143,-216.0000907,0.000141,2]
[353467382,1739863835153,-155.6390362,0.000141,2]
[353467383,1739863835164,-153.0,0.000141,2]
[353467384,1739863835175,-355.1269712,0.000141,2]
[353467385,1739863835186,-153.0,0.000141,2]
[353467386,1739863835196,-216.0000907,0.000141,2]
[353467387,1739863835205,-154.7234452,0.000141,2]
[353467388,1739863835215,-153.0,0.000141,2]
[353467389,1739863835225,-151.0,0.000141,2]
[353467390,1739863835235,-153.0,0.000141,2]
[353467391,1739863835245,-154.7234452,0.000141,2]
[353467392,1739863835254,-153.0,0.000141,2]
[353467393,1739863835264,-153.0,0.000141,2]
[353467394,1739863835274,-216.0000907,0.000141,2]
[353467395,1739863835284,-151.0,0.000141,2]
[353467396,1739863835294,-153.0,0.000141,2]
[353467397,1739863835303,-154.7234452,0.000141,2]
[353467398,1739863835313,-216.0000907,0.000141,2]
[353467399,1739863835323,-151.0,0.000141,2]
[353467400,1739863835332,-274.711684,0.000141,2]
[353467401,1739863835341,-153.0,0.000141,2]
[353467402,1739863835351,-154.7234452,0.000141,2]
[353467403,1739863835361,-216.0000907,0.000141,2]
[353467404,1739863835371,-151.0,0.00014101,2]
[353467405,1739863835381,-191.73887047,0.00014107,2]
[353467406,1739863835392,-306.0,0.00014164,2]
[353467407,1739863835402,-151.0,0.0001418,2]
[353467408,1739863835411,-151.0,0.0001418,2]
[353467409,1739863835421,-151.0,0.0001418,2]
[353467410,1739863835431,-500.0,0.00014181,2]
[353467411,1739863835441,-209.42,0.00014181,2]
[353467412,1739863835451,-632.07,0.00014181,2]
[353467413,1739863835461,-500.0,0.00014181,2]
[353467414,1739863835471,-345.57,0.00014181,2]
[353467415,1739863835481,-500.0,0.00014181,2]
[353467416,1739863835491,-500.0,0.00014181,2]
[353467417,1739863835501,-500.0,0.00014181,2]
[353467418,1739863835511,-644.61,0.00014181,2]
[353467419,1739863835520,-929.13,0.00014182,2]
[353467420,1739863835530,-2178.72,0.00014182,2]
[353467421,1739863835539,-366.28,0.00014182,2]
[353467422,1739863835549,-958.98,0.00014182,2]
[353467423,1739863835559,-391.06,0.00014182,2]
[353467424,1739863835569,-205.825189,0.00014183,2]
[353467425,1739863835578,-216.0000907,0.000142,2]
[353467426,1739863835588,-154.7234452,0.000142,2]
[353467427,1739863835598,-369.0535254,0.000142,2]
[353467428,1739863835607,-154.7234452,0.000142,2]
[353467429,1739863835617,-153.0,0.000142,2]
[353467430,1739863835626,-153.0,0.000142,2]
[353467431,1739863835636,-154.7234452,0.000142,2]
[353467432,1739863835647,-154.7234452,0.000142,2]
[353467433,1739863835657,-153.0,0.000142,2]
[353467434,1739863835666,-153.0,0.000142,2]
[353467435,1739863835676,-153.0,0.000142,2]
[353467436,1739863835686,-153.0,0.000142,2]
[353467437,1739863835695,-153.0,0.000142,2]
[353467438,1739863835704,-355.1269712,0.000142,2]
[353467439,1739863835714,-154.7234452,0.000142,2]
[353467440,1739863835723,-153.0,0.000142,2]
[353467441,1739863835732,-216.0000907,0.000142,2]
[353467442,1739863835741,-355.1269712,0.000142,2]
[353467443,1739863835750,-216.0000907,0.000142,2]
[353467444,1739863835760,-154.7234452,0.000142,2]
[353467445,1739863835770,-153.0,0.000142,2]
[353467446,1739863835780,-151.0,0.000142,2]
[353467447,1739863835790,-151.0,0.000142,2]
[353467448,1739863835800,-151.0,0.000142,2]
[353467449,1739863835810,-500.0,0.00014233,2]
[353467450,1739863835820,-295.05510827,0.0001424,2]
[353467451,1739863835830,-500.81505964,0.0001424,2]
[353467452,1739863835839,-159.0191638,0.00014256,2]
[353467453,1739863835849,-500.0,0.00014263,2]
[353467454,1739863835859,-632.07,0.00014263,2]
[353467455,1739863835869,-404.96,0.00014263,2]
[353467456,1739863835878,-500.0,0.00014263,2]
[353467457,1739863835887,-619.34229467,0.00014263,2]
[353467458,1739863835900,-500.0,0.00014263,2]
[353467459,1739863835909,-929.13,0.00014264,2]
[353467460,1739863835920,-2178.72,0.00014264,2]
[353467461,1739863835930,-151.0,0.00014264,2]
[353467462,1739863835950,-157.74655,0.00014264,2]
[353467463,1739863835962,-151.0,0.00014264,2]
[353467464,1739863835972,-958.98,0.00014264,2]
[353467465,1739863835982,-490.70060677,0.00014275,2]
[353467466,1739863835992,-153.0,0.000143,2]
[353467467,1739863836002,-216.0000907,0.000143,2]
[353467468,1739863836011,-153.0,0.000143,2]
[353467469,1739863836021,-154.7234452,0.000143,2]
[353467470,1739863836030,-153.0,0.000143,2]
[353467471,1739863836040,-355.1269712,0.000143,2]
[353467472,1739863836050,-500.0,0.00014345,2]
[353467473,1739863836060,-632.07,0.00014345,2]
[353467474,1739863836070,-152.76,0.00014345,2]
[353467475,1739863836080,-350.87,0.00014345,2]
[353467476,1739863836091,-929.13,0.00014346,2]
[353467477,1739863836102,-2178.72,0.00014346,2]
[353467478,1739863836112,-958.98,0.00014346,2]
[353467479,1739863836122,-500.0,0.00014427,2]
[353467480,1739863836133,-632.07,0.00014427,2]
[353467481,1739863836144,-929.13,0.00014428,2]
[353467482,1739863836155,-2178.72,0.00014428,2]
[353467483,1739863836165,-958.98,0.00014428,2]
[353467484,1739863836175,-1000.0,0.00014438,2]
[353467485,1739863836185,-613.92,0.00014509,2]
[353467486,1739863836195,-632.07,0.00014509,2]
[353467487,1739863836204,-929.13,0.0001451,2]
[353467488,1739863836213,-2178.72,0.0001451,2]
[353467489,1739863836223,-958.98,0.0001451,2]
[353467490,1739863836232,-500.0,0.00014513,2]
[353467491,1739863836241,-166.1,0.00014567,2]
[353467492,1739863836251,-632.07,0.00014592,2]
[353467493,1739863836261,-929.13,0.00014593,2]
[353467494,1739863836270,-2178.72,0.00014593,2]
[353467495,1739863836279,-958.98,0.00014593,2]
[353467496,1739863836288,-632.07,0.00014674,2]
[353467497,1739863836298,-929.13,0.00014675,2]
[353467498,1739863836307,-2178.72,0.00014675,2]
[353467499,1739863836316,-958.98,0.00014675,2]
[353467500,1739863836326,-632.07,0.00014756,2]
[353467501,1739863836334,-929.13,0.00014757,2]
[353467502,1739863836343,-2178.72,0.00014757,2]
[353467503,1739863836352,-958.98,0.00014757,2]
[353467504,1739863836362,-228.24055271,0.00014821,2]
[353467505,1739863836372,-632.07,0.00014838,2]
[353467506,1739863836381,-929.13,0.00014839,2]
[353467507,1739863836391,-2178.72,0.00014839,2]
[353467508,1739863836401,-958.98,0.00014839,2]
[353467509,1739863836410,-364.0626,0.000149,5]
[353467510,1739863836419,-17509.0431305,0.000149,2]
[353467511,1739863836429,-632.07,0.0001492,2]
[353467512,1739863836438,-929.13,0.00014921,2]
[353467513,1739863836447,-2178.72,0.00014921,2]
[353467514,1739863836457,-958.98,0.00014921,2]
[353467515,1739863836466,-7438.69753278,0.00014934,2]
[353467516,1739863836476,-5836.34771015,0.00014994,2]
[353467517,1739863836486,-4471.92900795,0.00015,2]
[353467518,1739863836495,-35452.96628062,0.00015,2]
[353467519,1739863836505,-632.07,0.00015003,2]
[353467520,1739863836514,-929.13,0.00015004,2]
[353467521,1739863836523,-2178.72,0.00015004,2]
[353467522,1739863836533,-958.98,0.00015004,2]
[353467523,1739863836542,-366.0,0.00015013,2]
[353467524,1739863836552,-5836.34771015,0.0001508,2]
[353467525,1739863836561,-632.07,0.00015085,2]
[353467526,1739863836571,-929.13,0.00015086,2]
[353467527,1739863836581,-2178.72,0.00015086,2]
[353467528,1739863836591,-958.98,0.00015086,2]
[353467529,1739863836604,-64199.8248117,0.0001509,2]
[353467530,1739863836614,-440.0,0.00015099,2]
[353467531,1739863836623,-86899.70674303,0.000151,5]
[353467549,1739863838306,-151.0,0.00013935,2]
[353467550,1739863838317,-151.0,0.00013935,2]
[353467551,1739863838326,-158.586484,0.00013935,2]
[353467552,1739863838337,-172.92,0.00014016,2]
[353467553,1739863838347,-345.24746875,0.000151,5]
[353467554,1739863838360,-2489.515304,0.000151,5]
[353467555,1739863838371,-773.5743532,0.000151,5]
[353467556,1739863838383,-413.300005,0.000151,5]
[353467557,1739863838395,-575.6874976,0.000151,5]
[353467558,1739863838406,-11908.23782019,0.000151,5]
[353467559,1739863838418,-114559.48411048,0.000151,5]
[353467560,1739863838429,-9460.63835381,0.000151,5]
[353467561,1739863838441,-791.28501278,0.000151,5]
[353467562,1739863838469,-2547.20648903,0.000151,5]
[353467563,1739863838480,-18926.4711975,0.000151,5]
[353467564,1739863838492,-931.66,0.000151,5]
[353467565,1739863838503,-462.83688589,0.000151,5]
[353467572,1739863840543,-45644.78088592,0.000151,5]
[353467573,1739863840555,-210101.08472703,0.000151,5]
[353467574,1739863840565,-440.0,0.000151,2]
[353467575,1739863840575,-491.44454576,0.000151,2]
[353467576,1739863840585,-182.71,0.00015115,2]
[353467577,1739863840595,-7746.77702639,0.00015136,2]
[353467578,1739863840604,-632.07,0.00015167,2]
[353467579,1739863840613,-929.13,0.00015168,2]
[353467580,1739863840623,-2178.72,0.00015168,2]
[353467581,1739863840632,-958.98,0.00015168,2]
[353467582,1739863840642,-632.07,0.00015249,2]
[353467583,1739863840653,-929.13,0.0001525,2]
[353467584,1739863840662,-2178.72,0.0001525,2]
[353467585,1739863840672,-958.98,0.0001525,2]
[353467586,1739863840681,-632.07,0.00015331,2]
[353467587,1739863840691,-929.13,0.00015332,2]
[353467588,1739863840700,-2178.72,0.00015332,2]
[353467589,1739863840710,-958.98,0.00015332,2]
[353467590,1739863840719,-632.07,0.00015413,2]
[353467591,1739863840728,-929.13,0.00015415,2]
[353467592,1739863840737,-2178.72,0.00015415,2]
[353467593,1739863840747,-958.98,0.00015415,2]
[353467594,1739863840756,-216.0000907,0.00015425,2]
[353467595,1739863840765,-155.6037324,0.00015425,2]
[353467596,1739863840775,-500.0,0.00015476,2]
[353467597,1739863840785,-5836.34771015,0.00015487,2]
[353467598,1739863840794,-632.07,0.00015496,2]
[353467599,1739863840804,-929.13,0.00015497,2]